fUSD/lending_fUSD_20260115
["ID","MTS","AMOUNT","RATE_DAILY","PERIOD"]
[402089954,1768515087618,-1263.0,0.00036384,30]
[402089955,1768515087627,-152.0,0.00036384,30]
[402089956,1768515087637,-1263.0,0.00036384,30]
[402089957,1768515087646,-152.0,0.00036384,30]
[402089958,1768515087655,-151.0,0.00036384,30]
[402089959,1768515087664,-1263.0,0.00036384,30]
[402089960,1768515087674,-152.0,0.00036384,30]
[402089961,1768515087683,-151.0,0.00036384,30]
[402089962,1768515087692,-1263.0,0.00036384,30]
[402089963,1768515087702,-152.0,0.00036384,30]
[402089964,1768515087711,-151.0,0.00036384,30]
[402089965,1768515087721,-1263.0,0.00036384,30]
[402089966,1768515087730,-152.0,0.00036384,30]
[402089967,1768515087739,-151.0,0.00036384,30]
[402089968,1768515087748,-1263.0,0.00036384,30]
[402089969,1768515087758,-152.0,0.00036384,30]
[402089970,1768515087768,-151.0,0.00036384,30]
[402089971,1768515087778,-1263.0,0.00036384,30]
[402089972,1768515087787,-152.0,0.00036384,30]
[402089973,1768515087796,-151.0,0.00036384,30]
[402089974,1768515087806,-152.0,0.00036384,30]
[402089975,1768515087815,-1263.0,0.00036384,30]
[402089976,1768515087825,-151.0,0.00036384,30]
[402089977,1768515087834,-152.0,0.00036384,30]
[402089978,1768515087844,-1263.0,0.00036384,30]
[402089979,1768515087853,-151.0,0.00036384,30]
[402089980,1768515087863,-152.0,0.00036384,30]
[402089981,1768515087872,-1263.0,0.00036384,30]
[402089982,1768515087882,-151.0,0.00036384,30]
[402089983,1768515087891,-152.0,0.00036384,30]
[402089984,1768515087900,-1263.0,0.00036384,30]
[402089985,1768515087910,-151.0,0.00036384,30]
[402089986,1768515087919,-1263.0,0.00036384,30]
[402089987,1768515087929,-272.6993399,0.00036384,30]
[402089988,1768515087938,-151.0,0.00036384,30]
[402089989,1768515087947,-1263.0,0.00036384,30]
[402089990,1768515087956,-151.0,0.00036384,30]
[402089991,1768515087965,-1263.0,0.00036384,30]
[402089992,1768515087975,-151.0,0.00036384,30]
[402089993,1768515087983,-151.0,0.00036384,30]
[402089994,1768515087992,-1263.0,0.00036384,30]
[402089995,1768515088002,-151.0,0.00036384,30]
[402089996,1768515088014,-492.0141556,0.00036384,30]
[402089997,1768515088023,-151.0,0.00036384,30]
[402089998,1768515088032,-151.0,0.00036384,30]
[402089999,1768515088041,-151.0,0.00036384,30]
[402090000,1768515088052,-151.0,0.00036384,30]
[402090001,1768515088061,-151.0,0.00036384,30]
[402090002,1768515088071,-158.0,0.00036384,30]
[402090003,1768515088081,-151.0,0.00036384,30]
[402090004,1768515088090,-158.0,0.00036384,30]
[402090005,1768515088099,-151.0,0.00036384,30]
[402090006,1768515088108,-151.0,0.00036384,30]
[402090007,1768515088117,-158.0,0.00036384,30]
[402090008,1768515088126,-158.0,0.00036384,30]
[402090009,1768515088135,-151.0,0.00036384,30]
[402090010,1768515088144,-151.0,0.00036384,30]
[402090011,1768515088153,-158.0,0.00036384,30]
[402090012,1768515088380,-158.0,0.00036384,30]
[402090013,1768515088390,-151.0,0.00036384,30]
[402090014,1768515088400,-151.0,0.00036384,30]
[402090015,1768515088409,-162.75894417,0.00036384,30]
[402090016,1768515088419,-202.2540792,0.00036384,30]
[402090017,1768515088428,-175.71837,0.00036384,31]
[402090018,1768515088441,-401.8141622,0.000364,2]
[402090019,1768515088451,-1000.0,0.000364,7]
[402090020,1768515088461,-255.8851037,0.000364,2]
[402090021,1768515088470,-200.0,0.000364,13]
[402090022,1768515088479,-609.0,0.00036411,120]
[402090023,1768515088490,-300.0,0.00036437,10]
[402090024,1768515088502,-666.0,0.00036437,30]
[402090025,1768515088512,-151.0,0.00036437,31]
[402090026,1768515088521,-151.0,0.00036437,31]
[402090027,1768515088530,-1864.52705,0.00036437,78]
[402090028,1768515088539,-1864.52706,0.00036437,78]
[402090029,1768515088548,-1864.52705,0.00036437,78]
[402090030,1768515088557,-1864.52706,0.00036437,78]
[402090031,1768515088566,-1864.52706,0.00036437,78]
[402090032,1768515088576,-1864.52706,0.00036437,78]
[402090033,1768515088585,-57821.94637784,0.00036438,27]
[402090034,1768515088600,-596.77,0.00036438,27]
[402090035,1768515088611,-280.55196684,0.00036438,27]
[402090036,1768515088677,-751.92826996,0.00036438,27]
[402090037,1768515088688,-14350.17888291,0.00036438,27]
[402090038,1768515089249,-883.07843476,0.00036438,27]
[402090039,1768515090284,175.08733396,0.00015793,2]
[402090040,1768515090319,186.81861111,0.00015793,2]
[402090041,1768515090349,500.0,0.00015793,2]
[402090042,1768515090386,344.05358343,0.00015793,2]
[402090043,1768515090417,241.81317729,0.00015793,2]
[402090044,1768515090476,500.0,0.00015793,2]
[402090045,1768515090536,500.0,0.00015793,2]
[402090046,1768515090644,500.0,0.00015793,2]
[402090047,1768515090696,500.0,0.00015793,2]
[402090048,1768515091537,500.0,0.00016438,2]
[402090049,1768515091578,500.0,0.00016438,2]
[402090050,1768515091614,500.0,0.00016438,2]
[402090051,1768515091648,500.0,0.00016438,2]
[402090052,1768515091682,369.36614343,0.00016438,2]
[402090053,1768515091752,500.0,0.00016438,2]
[402090054,1768515092246,500.0,0.00015693,2]
[402090055,1768515092283,500.0,0.00015693,2]
[402090056,1768515092319,500.0,0.00015693,2]
[402090057,1768515092372,500.0,0.00015693,2]
[402090058,1768515092457,296.33757302,0.00015693,2]
[402090059,1768515094126,235.78391465,0.00015743,2]
[402090060,1768515094441,250.0,0.00015743,2]
[402090062,1768515103435,-300.0,0.00015693,2]
[402090064,1768515121225,300.0,0.00015693,2]
[402090065,1768515121908,300.0,0.00015693,2]
[402090069,1768515174988,247.65,0.000156,2]
[402090070,1768515176084,247.65,0.000155,3]
[402090071,1768515177178,768.34,0.000141,2]
[402090082,1768515193298,152.92,0.00019178,30]
[402090084,1768515197554,1200.0,0.00015693,2]
[402090086,1768515246699,456.47740728,0.00015594,2]
[402090087,1768515301086,1205.3155092,0.00030136,120]
[402090088,1768515301151,300.0,0.00015693,2]
[402090089,1768515301187,300.0,0.00015693,2]
[402090090,1768515301251,1200.0,0.00015693,2]
[402090091,1768515303148,300.0,0.00015693,2]
[402090093,1768515358867,3779.89259272,0.00015594,2]
[402090094,1768515358892,10000.01,0.00015594,2]
[402090095,1768515358917,10000.01,0.00015594,2]
[402090096,1768515358941,1420.05872321,0.00015594,2]
[402090097,1768515361512,300.0,0.00015693,2]
[402090099,1768515371543,152.06497503,0.00015594,2]
[402090100,1768515386931,1640.44191052,0.00015594,2]
[402090101,1768515387017,694.97149984,0.00015594,2]
[402090104,1768515481307,300.0,0.00015693,2]
[402090105,1768515482385,300.0,0.00015693,2]
[402090106,1768515497615,1200.0,0.00015693,2]
[402090107,1768515527233,463.31433322,0.00015594,2]
[402090108,1768515530086,2500.0,0.00015594,2]
[402090109,1768515541195,300.0,0.00015693,2]
[402090110,1768515592090,2449.21728139,0.00015594,2]
[402090111,1768515592128,10000.01,0.00015594,2]
[402090112,1768515592158,9556.53835912,0.00015594,2]
[402090113,1768515601889,300.0,0.00015693,2]
[402090114,1768515601924,1200.0,0.00015693,2]
[402090115,1768515601962,300.0,0.00015693,2]
[402090116,1768515604056,236.7564,0.00015594,2]
[402090121,1768515631810,208.75379888,0.00015693,2]
[402090122,1768515633869,500.0,0.00015693,2]
[402090123,1768515633928,500.0,0.00015693,2]
[402090124,1768515633974,500.0,0.00015693,2]
[402090125,1768515634016,500.0,0.00015693,2]
[402090126,1768515634064,500.0,0.00015693,2]
[402090127,1768515634127,500.0,0.00015693,2]
[402090128,1768515634183,500.0,0.00015693,2]
[402090129,1768515634256,500.0,0.00015693,2]
[402090130,1768515634295,500.0,0.00015693,2]
[402090131,1768515634344,500.0,0.00015693,2]
[402090132,1768515634402,500.0,0.00015693,2]
[402090133,1768515634450,500.0,0.00015693,2]
[402090134,1768515634502,500.0,0.00015693,2]
[402090135,1768515634548,500.0,0.00015693,2]
[402090136,1768515634601,305.27848838,0.00015693,2]
[402090137,1768515634672,449.22131274,0.00015693,2]
[402090138,1768515634704,50.77868726,0.00015693,2]
[402090139,1768515643095,1225.44148884,0.00015594,2]
[402090140,1768515661226,300.0,0.00015693,2]
[402090141,1768515662011,300.0,0.00015693,2]
[402090143,1768515667950,308.87622214,0.00015594,2]
[402090145,1768515690259,171.2521626,0.00015594,2]
[402090146,1768515694203,1520.322,0.0001538,2]
[402090147,1768515694297,172.78122864,0.0001538,2]
[402090149,1768515706112,282.0,0.00030137,120]
[402090150,1768515721264,300.0,0.00015693,2]
[402090151,1768515726205,2717.3579,0.00015594,2]
[402090152,1768515732485,236.7564,0.00015594,2]
[402090153,1768515735453,151.0,0.00015694,2]
[402090154,1768515736124,151.0,0.00015694,2]
[402090156,1768515736697,151.0,0.00015694,2]
[402090157,1768515737360,151.0,0.00015694,2]
[402090158,1768515737971,151.0,0.00015694,2]
[402090159,1768515738593,151.0,0.00015694,2]
[402090160,1768515739193,151.0,0.00015694,2]
[402090161,1768515740062,151.0,0.00015694,2]
[402090162,1768515740471,151.0,0.00015694,2]
[402090163,1768515741264,-505.56703205,0.00015694,2]
[402090164,1768515741379,151.0,0.00015694,2]
[402090165,1768515741637,151.0,0.00015694,2]
[402090166,1768515742236,-206.9126802,0.00015694,2]
[402090167,1768515742285,151.0,0.00015694,2]
[402090168,1768515742862,151.0,0.00015694,2]
[402090169,1768515743493,151.0,0.00015694,2]
[402090170,1768515744014,500.0,0.00015693,2]
[402090171,1768515744085,82.44391052,0.00015694,2]
[402090172,1768515744114,68.55608948,0.00015694,2]
[402090173,1768515744155,177.7958074,0.00015693,2]
[402090174,1768515744226,-259.03159536,0.00015694,2]
[402090175,1768515744855,182.34340284,0.00015694,2]
[402090176,1768515744959,470.173137,0.00015693,2]
[402090177,1768515745227,9101.14156328,0.00015594,2]
[402090178,1768515745256,10000.01,0.00015594,2]
[402090179,1768515745282,3578.82262103,0.00015594,2]
[402090180,1768515745778,-322.97458823,0.00015694,2]
[402090181,1768515747270,-273.6419998,0.00015694,2]
[402090182,1768515751117,-300.0,0.00015694,2]
[402090183,1768515753324,-367.28669584,0.00015694,2]
[402090184,1768515760730,500.0,0.00015693,2]
[402090185,1768515760781,622.4017846,0.00015693,2]
[402090186,1768515763311,-236.09671613,0.00015694,2]
[402090187,1768515763381,844.88,0.00015684,3]
[402090188,1768515765214,2036.182952,0.00015615,2]
[402090190,1768515788435,176.98147396,0.00015693,2]
[402090191,1768515797476,1200.0,0.00015693,2]
[402090192,1768515808244,310.09167564,0.00015594,2]
[402090193,1768515842731,300.0,0.00015693,2]
[402090195,1768515901167,300.0,0.00015693,2]
[402090196,1768515901620,1200.0,0.00015693,2]
[402090199,1768515925171,1027.30602126,0.000108,2]
[402090200,1768515927894,-8980.46605229,0.00015694,2]
[402090201,1768515927949,-10000.01,0.00015694,2]
[402090202,1768515927987,-10000.01,0.00015694,2]
[402090203,1768515928030,-10000.01,0.00015694,2]
[402090204,1768515929390,-10000.01,0.00015694,2]
[402090205,1768515929502,-10000.01,0.00015694,2]
[402090206,1768515929655,-10000.01,0.00015694,2]
[402090207,1768515929822,-10000.01,0.00015694,2]
[402090208,1768515935843,-10000.01,0.00015694,2]
[402090209,1768515935930,-10000.01,0.00015694,2]
[402090210,1768515935990,-10000.01,0.00015694,2]
[402090211,1768515936024,-10000.01,0.00015694,2]
[402090212,1768515936075,-10000.01,0.00015694,2]
[402090213,1768515956910,-276.17724658,0.00015594,2]
[402090214,1768515959213,3503.5808758,8e-05,2]
[402090215,1768515961362,300.0,0.00015693,2]
[402090216,1768515968006,5644.07463104,7.945e-05,2]
[402090217,1768515968033,8872.97906696,7.945e-05,2]
[402090218,1768515971146,410.88437,0.00015615,2]
[402090219,1768515978459,716.14656304,0.00015692,2]
[402090220,1768515978488,426.38521005,0.00015692,2]
[402090221,1768516011697,-159.8,0.00015694,2]
[402090222,1768516015486,-268.51352137,0.00015694,2]
[402090223,1768516018126,-156.70272246,0.00015694,2]
[402090224,1768516021053,-173.15593603,0.00015694,2]
[402090225,1768516022232,-202.90743206,0.00015694,2]
[402090226,1768516022511,300.0,0.00015693,2]
[402090227,1768516024204,-205.11509146,0.00015694,2]
[402090228,1768516026346,-171.71190336,0.00015694,2]
[402090230,1768516031835,3821.16151165,0.0001305,2]
[402090231,1768516033528,-6004.81777146,0.00015694,2]
[402090232,1768516033588,-10000.01,0.00015694,2]
[402090233,1768516033730,-10000.01,0.00015694,2]
[402090234,1768516033760,-10000.01,0.00015694,2]
[402090235,1768516033795,-10000.01,0.00015694,2]
[402090236,1768516034272,-275.0,0.00015694,2]
[402090237,1768516035543,-500.0,0.00015694,2]
[402090238,1768516035582,-9000.01,0.00015694,2]
[402090239,1768516035648,-500.0,0.00015694,2]
[402090240,1768516035688,-9000.01,0.00015694,2]
[402090241,1768516035781,-10000.01,0.00015694,2]
[402090242,1768516035903,-10000.01,0.00015694,2]
[402090244,1768516041730,-500.0,0.00015694,2]
[402090245,1768516041765,-200.0,0.00015694,2]
[402090246,1768516041798,-500.0,0.00015694,2]
[402090247,1768516041830,-500.0,0.00015694,2]
[402090248,1768516041864,-500.0,0.00015694,2]
[402090249,1768516041903,-500.0,0.00015694,2]
[402090250,1768516041936,-500.0,0.00015694,2]
[402090251,1768516042280,-500.0,0.00015694,2]
[402090252,1768516042313,-500.0,0.00015694,2]
[402090253,1768516042355,-597.7678713,0.00015694,2]
[402090254,1768516043686,-404.4742574,0.00015694,2]
[402090255,1768516043726,-10000.01,0.00015694,2]
[402090256,1768516043986,-250.0,0.00015694,2]
[402090258,1768516050667,-1500.0,0.00015159,2]
[402090259,1768516050701,-1000.0,0.00015693,2]
[402090260,1768516050733,-200.0,0.00015694,2]
[402090261,1768516050830,-4600.01,0.00015694,2]
[402090262,1768516050907,-10000.01,0.00015694,2]
[402090263,1768516050960,-10000.01,0.00015694,2]
[402090264,1768516051098,-200.0,0.00015694,2]
[402090265,1768516051198,-9600.01,0.00015694,2]
[402090266,1768516056721,-151.0,0.00015694,2]
[402090267,1768516056755,-500.0,0.00015694,2]
[402090268,1768516056789,-151.0,0.00015694,2]
[402090269,1768516056824,-151.0,0.00015694,2]
[402090270,1768516056857,-151.0,0.00015694,2]
[402090271,1768516057019,-7792.01,0.00015694,2]
[402090272,1768516057057,-10000.01,0.00015694,2]
[402090273,1768516057087,-10000.01,0.00015694,2]
[402090274,1768516062928,-151.0,0.00015694,2]
[402090275,1768516062969,-151.0,0.00015694,2]
[402090276,1768516063003,-151.0,0.00015694,2]
[402090277,1768516063036,-151.0,0.00015694,2]
[402090278,1768516063069,-151.0,0.00015694,2]
[402090279,1768516063102,-151.0,0.00015694,2]
[402090280,1768516063136,-151.0,0.00015694,2]
[402090281,1768516063319,-7886.01,0.00015694,2]
[402090282,1768516063384,-10000.01,0.00015694,2]
[402090283,1768516063401,-10000.01,0.00015694,2]
[402090284,1768516063969,-385.56468127,0.00015694,2]
[402090285,1768516065824,-10000.01,0.00015694,2]
[402090286,1768516065960,-10000.01,0.00015694,2]
[402090287,1768516066129,-10000.01,0.00015694,2]
[402090288,1768516068853,-522.02705067,0.00014,2]
[402090289,1768516068905,-8955.95589866,0.00015694,2]
[402090290,1768516068997,-10000.01,0.00015694,2]
[402090291,1768516069114,-10000.01,0.00015694,2]
[402090292,1768516085369,307.28713571,0.000125,2]
[402090293,1768516097794,641.63701,7.945e-05,2]
[402090294,1768516097879,227.85,0.00030136,120]
[402090297,1768516105742,268.11634068,0.000107,2]
[402090298,1768516109904,-2439.28,0.00015092,2]
[402090299,1768516109930,-6727.72,0.00015494,2]
[402090300,1768516112219,4314.58079289,0.0001,2]
[402090301,1768516117592,-3311.246486,0.00015016,2]
[402090302,1768516117618,-3377.517028,0.00015016,2]
[402090303,1768516117837,-10000.01,0.00015494,2]
[402090304,1768516118000,-10000.01,0.00015494,2]
[402090305,1768516118163,-235.57653454,0.00015494,2]
[402090306,1768516118190,-9528.85693092,0.00015494,2]
[402090307,1768516118340,-1200.0,0.00015593,2]
[402090309,1768516130811,-193.87050116,0.00015594,2]
[402090310,1768516133181,-158.76394628,0.00015594,2]
[402090312,1768516135648,7600.01,0.00015494,2]
[402090313,1768516135682,10000.01,0.00015494,2]
[402090314,1768516135715,9859.36702445,0.00015494,2]
[402090315,1768516135751,-273.86999409,0.00015594,2]
[402090316,1768516137875,-287.44961372,0.00015594,2]
[402090317,1768516140812,-318.67722561,0.00015594,2]
[402090318,1768516142582,-274.76701349,0.00015594,2]
[402090319,1768516144012,-432.28167555,0.00015594,2]
[402090320,1768516146965,140.64297555,0.00015014,2]
[402090321,1768516147005,231.41702445,0.00015014,2]
[402090322,1768516147151,-360.02701619,0.00015594,2]
[402090323,1768516149913,-180.67137245,0.00015594,2]
[402090324,1768516152110,-294.38879118,0.00015594,2]
[402090325,1768516153649,-274.80143649,0.00015594,2]
[402090326,1768516158604,-320.29133073,0.00015594,2]
[402090327,1768516160183,-396.53446097,0.00015594,2]
[402090328,1768516162226,-205.47583682,0.00015594,2]
[402090329,1768516164584,-193.17305488,0.00015594,2]
[402090330,1768516166119,-481.1193947,0.00015594,2]
[402090331,1768516168734,-349.79502899,0.00015594,2]
[402090332,1768516173266,-166.46688855,0.00015594,2]
[402090333,1768516175534,-213.14254782,0.00015594,2]
[402090334,1768516177195,-167.55253785,0.00015594,2]
[402090335,1768516178360,-279.53663248,0.00015594,2]
[402090336,1768516178779,-1609.50971059,0.00015594,2]
[402090337,1768516180121,-10000.01,0.00015594,2]
[402090338,1768516180363,-10000.01,0.00015594,2]
[402090339,1768516180586,-10000.01,0.00015594,2]
[402090340,1768516180821,1297.86193463,0.00015574,2]
[402090341,1768516180856,-214.34851536,0.00015594,2]
[402090342,1768516181995,-8702.14806537,0.00015594,2]
[402090343,1768516182263,-183.21864461,0.00015594,2]
[402090344,1768516182725,-10000.01,0.00015594,2]
[402090345,1768516183593,-10000.01,0.00015594,2]
[402090346,1768516185245,-290.29070041,0.00015594,2]
[402090347,1768516201136,300.0,0.00015593,2]
[402090348,1768516201171,300.0,0.00015593,2]
[402090349,1768516201211,1200.0,0.00015593,2]
[402090350,1768516202417,300.0,0.00015593,2]
[402090351,1768516202485,300.0,0.00015593,2]
[402090353,1768516206511,-291.5904014,0.00015594,2]
[402090355,1768516213371,-240.73102327,0.00015594,2]
[402090356,1768516215120,7600.01,0.00015584,2]
[402090357,1768516215147,133.84,0.00015584,2]
[402090358,1768516215830,7733.85,0.00015584,2]
[402090360,1768516217595,-400.36306674,0.00015594,2]
[402090361,1768516218192,-2132.32,0.00015594,2]
[402090362,1768516218373,-10000.01,0.00015594,2]
[402090363,1768516218415,-10000.01,0.00015594,2]
[402090364,1768516218436,-10000.01,0.00015594,2]
[402090365,1768516220683,-10000.01,0.00015594,2]
[402090366,1768516220877,-10000.01,0.00015594,2]
[402090367,1768516220994,-10000.01,0.00015594,2]
[402090368,1768516221129,-10000.01,0.00015594,2]
[402090369,1768516225021,-271.38861775,0.00015594,2]
[402090370,1768516227078,-284.67298197,0.00015594,2]
[402090371,1768516229208,-318.68313666,0.00015594,2]
[402090383,1768516231978,-1900.0,0.00015594,2]
[402090384,1768516232040,-5555.74700078,0.00015594,2]
[402090388,1768516232456,-607.19801074,0.00015594,2]
[402090389,1768516235058,-297.60139504,0.00015594,2]
[402090394,1768516236562,440.69297248,0.00015494,2]
[402090404,1768516237952,-250.0,0.00015594,2]
[402090405,1768516238258,-252.02371514,0.00015594,2]
[402090406,1768516238270,-443.21634454,0.00015594,2]
[402090408,1768516238281,-4970.2866481,0.00015594,2]
[402090409,1768516238292,-8585.51235588,0.00015594,2]
[402090410,1768516238303,-5041.89091283,0.00015594,2]
[402090411,1768516238326,-36985.46674256,0.00015594,2]
[402090412,1768516238337,-800171.67201026,0.00015594,2]
[402090413,1768516238346,-916.6051,0.00015594,2]
[402090414,1768516238355,-3003.1681,0.00015594,2]
[402090415,1768516238364,-2500.0,0.00015594,2]
[402090416,1768516238373,-250.0,0.00015594,2]
[402090417,1768516238382,-600.0,0.00015594,2]
[402090418,1768516238392,-300.6515313,0.00015594,2]
[402090419,1768516238402,-280.0,0.00015594,2]
[402090420,1768516238419,-276.39,0.000156,2]
[402090421,1768516238436,-250.0,0.00015606,2]
[402090422,1768516238446,-600.0,0.00015654,2]
[402090423,1768516238457,-600.0,0.00015654,2]
[402090424,1768516238469,-500.0,0.00015694,2]
[402090425,1768516238479,-2500.0,0.00015694,2]
[402090426,1768516238488,-200.0,0.00015694,2]
[402090427,1768516238499,-300.0,0.00015694,2]
[402090428,1768516238509,-195.0,0.00015694,2]
[402090429,1768516238519,-195.0,0.00015718,2]
[402090430,1768516238529,-36492.17346544,0.00015761,2]
[402090431,1768516238539,-27459.38702439,0.00015761,2]
[402090432,1768516238550,-393.68983283,0.00015794,2]
[402090433,1768516238560,-1000.0,0.00015795,2]
[402090434,1768516238570,-1362.3845,0.00015795,2]
[402090435,1768516238581,-372.06,0.00015848,2]
[402090436,1768516238590,-197.59856262,0.00015878,2]
[402090437,1768516238600,-500.0,0.00015878,2]
[402090438,1768516238612,-334.65526141,0.00015878,2]
[402090439,1768516238629,-180.61863989,0.00015878,2]
[402090440,1768516238640,-500.0,0.00015878,2]
[402090441,1768516238649,-500.0,0.00015878,2]
[402090442,1768516238659,-383.87280801,0.00015878,2]
[402090443,1768516238670,-500.0,0.00015878,2]
[402090444,1768516238681,-500.0,0.00015878,2]
[402090445,1768516238691,-28706.44,0.00015879,2]
[402090446,1768516238703,-3562.65,0.00015879,2]
[402090447,1768516238712,-3240.0,0.00015879,2]
[402090448,1768516238722,-1832.31934377,0.00015884,2]
[402090449,1768516238732,-500.0,0.00015894,2]
[402090450,1768516238742,-500.0,0.00015894,2]
[402090451,1768516238752,-403.16025657,0.00015894,2]
[402090452,1768516238762,-500.0,0.00015894,2]
[402090453,1768516238772,-207.58974413,0.00015894,2]
[402090454,1768516238782,-500.0,0.00015894,2]
[402090455,1768516238792,-500.0,0.00015894,2]
[402090456,1768516238802,-201.82627964,0.00015894,2]
[402090458,1768516238812,-7637.27,0.00015894,2]
[402090460,1768516238822,-9999.99,0.00015894,2]
[402090462,1768516238831,-9999.99,0.00015894,2]
[402090463,1768516238841,-9999.99,0.00015894,2]
[402090464,1768516238851,-299.99,0.00015894,2]
[402090465,1768516238862,-30543.85760902,0.00015894,2]
[402090466,1768516238875,-79619.66239098,0.00015894,2]
[402090467,1768516238885,-3177.82,0.00015894,2]
[402090469,1768516238894,-1179.61,0.00015894,2]
[402090471,1768516238904,-150.99,0.00015894,2]
[402090472,1768516238914,-9999.99,0.00015894,2]
[402090473,1768516238924,-150.99,0.00015894,2]
[402090474,1768516238935,-1143.0,0.00015894,2]
[402090475,1768516238945,-9999.99,0.00015894,2]
[402090476,1768516238956,-999.99,0.00015894,2]
[402090477,1768516238967,-1549.46,0.00015894,2]
[402090478,1768516238976,-550.39,0.00015894,2]
[402090479,1768516238987,-500.0,0.00015894,2]
[402090480,1768516238996,-500.0,0.00015894,2]
[402090481,1768516239006,-500.0,0.00015894,2]
[402090482,1768516239016,-500.0,0.00015894,2]
[402090483,1768516239026,-500.0,0.00015894,2]
[402090484,1768516239036,-500.0,0.00015894,2]
[402090485,1768516239046,-500.0,0.00015894,2]
[402090486,1768516239056,-500.0,0.00015894,2]
[402090487,1768516239066,-500.0,0.00015894,2]
[402090488,1768516239076,-500.0,0.00015894,2]
[402090489,1768516239086,-500.0,0.00015894,2]
[402090490,1768516239096,-500.0,0.00015894,2]
[402090491,1768516239111,-500.0,0.00015894,2]
[402090492,1768516239132,-500.0,0.00015894,2]
[402090493,1768516239152,-500.0,0.00015894,2]
[402090494,1768516239168,-500.0,0.00015894,2]
[402090495,1768516239179,-500.0,0.00015894,2]
[402090496,1768516239191,-500.0,0.00015894,2]
[402090497,1768516239203,-500.0,0.00015894,2]
[402090499,1768516239212,-500.0,0.00015894,2]
[402090501,1768516239223,-500.0,0.00015894,2]
[402090502,1768516239235,-500.0,0.00015894,2]
[402090504,1768516239247,-500.0,0.00015894,2]
[402090505,1768516239256,-500.0,0.00015894,2]
[402090506,1768516239266,-500.0,0.00015894,2]
[402090507,1768516239275,-500.0,0.00015894,2]
[402090508,1768516239286,-151.0,0.00015993,2]
[402090509,1768516239295,-151.0,0.00015995,2]
[402090510,1768516239305,-151.0,0.00015999,2]
[402090511,1768516239314,-101889.10778767,0.00016,2]
[402090512,1768516239327,-211210.73084035,0.00016,4]
[402090513,1768516239336,-36492.17346544,0.00016029,2]
[402090514,1768516239346,-27459.38702439,0.00016029,2]
[402090515,1768516239356,-500.0,0.00016089,2]
[402090516,1768516239366,-199.22287407,0.00016089,2]
[402090517,1768516239376,-500.0,0.00016089,2]
[402090518,1768516239385,-500.0,0.00016089,2]
[402090519,1768516239394,-500.0,0.00016089,2]
[402090520,1768516239404,-500.0,0.00016089,2]
[402090521,1768516239414,-500.0,0.00016089,2]
[402090522,1768516239424,-500.0,0.00016089,2]
[402090523,1768516239434,-500.0,0.00016168,2]
[402090524,1768516239444,-5000.0017845,0.000162,5]
[402090525,1768516239453,-200.0,0.00016242,2]
[402090526,1768516239462,-200.0,0.00016242,2]
[402090527,1768516239472,-500.0,0.00016242,2]
[402090528,1768516239481,-36492.17346544,0.00016296,2]
[402090529,1768516239491,-27459.38702439,0.00016296,2]
[402090530,1768516239501,-500.0,0.00016316,2]
[402090531,1768516239511,-3180.31790745,0.00016338,2]
[402090532,1768516239520,-500.0,0.00016354,2]